Cogmind - Beta 14 @@@ ROGUE MODE // 2024.11.01 @ 17:33:04 Player: Thqwib Result: Self-destructed Performance ------------- Evolutions (2) 1000 Regions Visited (5) 1000 Robots Destroyed (10) 50 Value Destroyed (371) 371 Prototype IDs (3) 60 Alien Tech Used (0) 0 Bonus (87) 87 TOTAL SCORE: 2568 Bonus ------- Follower Combat Kills 101 Friendly Fire -14 Cogmind --------- Core Integrity 550/550 Matter 300/300 Energy 263/265 System Corruption 0% Temperature Cool (0) Movement Walking (190) Ox1 Location -8/Materials Parts ------- > --- POWER (1) -------- Improved Ion Engine > --- PROPULSION (3) --- Aluminum Leg Improved Flight Unit > --- UTILITY (5) ------ Improved Heat Sink Improved Heat Sink Small Storage Unit Light Armor Plating > --- WEAPON (2) ------- EM Pulse Gun Small Laser > --- INVENTORY (8) ---- Ion Engine Light Ion Engine Light Nuclear Core Wheel Compact Wheel Peak State ------------ > --- POWER ------------ Improved Ion Engine > --- PROPULSION ------- Aluminum Leg Aluminum Leg Aluminum Leg > --- UTILITY ---------- Improved Heat Sink Improved Heat Sink Small Storage Unit Terrain Scanner Medium Armor Plating > --- WEAPON ----------- EM Pulse Gun Mining Laser > --- INVENTORY -------- Ion Engine Light Ion Engine Light Nuclear Core Wheel Compact Wheel Small Laser [Rating: 17] Favorites ----------- Power Ion Engine Engine Ion Engine Propulsion Aluminum Leg Leg Aluminum Leg Flight Unit Improved Flight Unit Utility Small Storage Unit Device Improved Heat Sink Storage Small Storage Unit Protection Light Armor Plating Weapon Light Assault Rifle Energy Gun Particle Gun Ballistic Gun Light Assault Rifle Special Weapon Mining Laser Build | -11 -10 -10 -10 -9 -8 ------- Run | Yrd Mat Min Exi Min Mat Slots Evolved 4 | . . . . . 4 Power . | . . . . . . Propulsion 1 | . . . . . 1 Utility 3 | . . . . . 3 Weapon . | . . . . . . Parts Attached 20 | 1 1 4 . 6 8 Power 2 | . . 1 . 1 . Engine 2 | . . 1 . 1 . Core . | . . . . . . Reactor . | . . . . . . Propulsion 6 | . . 1 . 2 3 Treads . | . . . . . . Leg 5 | . . 1 . 2 2 Wheel . | . . . . . . Hover . | . . . . . . Flight 1 | . . . . . 1 Utility 6 | . 1 1 . . 4 Device 3 | . . 1 . . 2 Storage . | . . . . . . Processor . | . . . . . . Hackware . | . . . . . . Protection 3 | . 1 . . . 2 Artifact . | . . . . . . Weapon 6 | 1 . 1 . 3 1 Energy Gun 3 | . . 1 . 1 1 Energy Cannon . | . . . . . . Ballistic Gun 2 | 1 . . . 1 . Ballistic Cannon . | . . . . . . Launcher . | . . . . . . Special Weapon 1 | . . . . 1 . Impact Weapon . | . . . . . . Slashing Weapon . | . . . . . . Piercing Weapon . | . . . . . . Special Melee Weapon . | . . . . . . Unidentified Prototypes 1 | . . . . . 1 Corrupted Parts 1 | . . 1 . . . System Corruption 2 | . . 2 . . . Parts Lost 3 | . . . . 1 2 Power . | . . . . . . Propulsion 1 | . . . . . 1 Utility 1 | . . . . . 1 Weapon 1 | . . . . 1 . Highest Loss Streak 1 | . . . . 1 1 To Critical Strikes . | . . . . . . Average Slot Usage (%) 97 | . 89 98 100 100 91 Engine 13 | . 14 14 14 14 9 Leg 27 | . 28 28 28 28 24 Device 10 | . . 4 14 14 20 Storage 13 | . 14 14 14 14 9 Protection 4 | . 3 8 . . 9 Energy Gun 13 | . 14 14 14 14 13 Ballistic Gun 12 | . 14 14 14 13 . Peak Build Rating 17 | 6 7 10 10 10 17 Average Rating 9 | 6 6 8 10 9 14 On Entrance 8 | 6 6 7 10 10 10 Naked Turns . | . . . . . . Heaviest Build 25 | 11 14 15 15 16 25 Greatest Support 30 | 20 20 20 20 20 30 Greatest Overweight (x) 1 | . . . . . 1 Average Overweight (x) . | . . . . . . Largest Inventory Capacity 8 | 8 8 8 8 8 8 Average Capacity 8 | 8 8 8 8 8 8 Most Carried 8 | 5 4 7 6 8 7 Average Carried 5 | 4 4 5 6 7 5 Final Capacity 8 | 8 8 8 8 8 8 Final Carried 8 | 4 4 6 6 8 5 Class Distribution -------------------- 84% | Mutant 15% | Scavenger-Mutant Dominant Class ---------------- Mutant | -10/Materials Mutant | -10/Mines Mutant | -10/Exiles Mutant | -9/Mines Scavenger-Mutant | -8/Materials Resources | -11 -10 -10 -10 -9 -8 ----------- Run | Yrd Mat Min Exi Min Mat Matter Collected 454 | 210 . 62 . 97 85 Remotely . | . . . . . . Salvage Created 369 | . . 168 . 123 78 Parts 19 | . . 6 . 9 4 Haulers Intercepted 1 | . . . . . 1 Recyclers Shooed 2 | . . 1 . 1 . Parts Field Recycled . | . . . . . . Retrieved Matter . | . . . . . . Parts Self-Destructed . | . . . . . . Prevented . | . . . . . . Kills | -11 -10 -10 -10 -9 -8 ------- Run | Yrd Mat Min Exi Min Mat Combat Hostiles Destroyed 8 | . . 4 . 3 1 Guns 7 | . . 4 . 3 . Cannons 1 | . . . . . 1 Classes Destroyed 4 | . . 1 . 1 2 Hauler 1 | . . . . . 1 Watcher 1 | . . . . . 1 Grunt 7 | . . 4 . 2 1 Duelist 1 | . . . . 1 . Best Kill Streak 3 | . . 2 . 3 2 Combat Bots Only 3 | . . 2 . 3 1 Max Kills in Single Turn 1 | . . 1 . 1 1 Gunslinging . | . . . . . . Exploded . | . . . . . . Melee . | . . . . . . Uniques/NPCs Destroyed . | . . . . . . Combat | -11 -10 -10 -10 -9 -8 -------- Run | Yrd Mat Min Exi Min Mat Hostile Shots Fired 50 | . . 28 . 12 10 Missed 13 | . . 7 . 4 2 Damage Taken 723 | . . 311 . 148 264 Core 50 | . . 38 . 12 . Absorbed by Shields . | . . . . . . Core Remaining (%) 90 | 100 . . . 80 . Volleys Fired 35 | . . 17 . 9 9 Largest 2 | . . 2 . 2 2 Hottest 140 | . . 85 . 85 140 Shots Fired 66 | . . 29 1 18 18 Gun 62 | . . 29 1 18 14 Cannon . | . . . . . . Launcher . | . . . . . . Special 4 | . . . . . 4 Kinetic 22 | . . 12 1 9 . Thermal 18 | . . 6 . 3 9 Explosive . | . . . . . . Electromagnetic 26 | . . 11 . 6 9 Robot Hit Streak 8 | . . 5 . 8 4 Robot Miss Streak 3 | . . 2 . 3 2 Penetration Max . | . . . . . . Secondary Targets . | . . . . . . Shots Hit Robots 44 | . . 21 . 12 11 Core Hits 23 | . . 11 . 5 7 Critical Kills . | . . . . . . Critical Parts Destroyed . | . . . . . . Critical Strikes 2 | . . 1 . . 1 Burn 1 | . . 1 . . . Corrupt 1 | . . . . . 1 Melee Attacks . | . . . . . . Impact . | . . . . . . Slashing . | . . . . . . Piercing . | . . . . . . Sneak Attacks . | . . . . . . Combat Hostiles . | . . . . . . Follow-up Attacks . | . . . . . . Damage Inflicted 664 | . . 310 . 135 219 Guns 534 | . . 266 . 135 133 Cannons . | . . . . . . Explosions 58 | . . 44 . . 14 Melee . | . . . . . . Ramming . | . . . . . . Kinetic 132 | . . 80 . 52 . Thermal 283 | . . 126 . 29 128 Explosive . | . . . . . . Electromagnetic 249 | . . 104 . 54 91 Impact . | . . . . . . Slashing . | . . . . . . Piercing . | . . . . . . Highest Corruption 2 | . . 2 2 2 . Average Corruption 2 | . . 2 2 2 . Corruption Purged . | . . . . . . Corruption Blocked . | . . . . . . Effects 12 | . . 3 3 6 . Message Errors 2 | . . . . 2 . Matter Fused 6 | . . 3 . 3 . Heat Flow Errors 1 | . . . 1 . . Energy Discharges 1 | . . . 1 . . Data Loss (major) 1 | . . . . 1 . Misfires 1 | . . . 1 . . Overload Shots . | . . . . . . Overflow Damage 7 | . . . . . 7 Projectiles . | . . . . . . Explosions 7 | . . . . . 7 Melee . | . . . . . . Knockbacks . | . . . . . . Impact . | . . . . . . Kinetic . | . . . . . . Secondary . | . . . . . . Self-Inflicted Damage 110 | . . 7 . . 103 Shots 3 | . . 1 . . 2 Rammed . | . . . . . . Targets Rammed . | . . . . . . Kicked . | . . . . . . Crushed . | . . . . . . Highest Temperature 285 | . . 285 202 16 16 Average Temperature 106 | . . 137 105 8 3 Received Heat Transfer 312 | . . 192 . 30 90 Effects 2 | . . 2 . . . Interference 2 | . . 2 . . . Siege Activations . | . . . . . . Robots Corrupted . | . . . . . . Combat Hostiles . | . . . . . . Parts Fried . | . . . . . . Impact Corruptions . | . . . . . . Robots Melted . | . . . . . . Combat Hostiles . | . . . . . . Parts Melted 1 | . . . . . 1 Heat Transferred 733 | . . 359 . 74 300 Parts Sabotaged . | . . . . . . Parts Stolen . | . . . . . . Parts Stripped . | . . . . . . Power Chain Reactions 2 | . . 1 . . 1 Alert | -11 -10 -10 -10 -9 -8 ------- Run | Yrd Mat Min Exi Min Mat Peak Influence 236 | . . 101 . 90 236 Initial 35 | . . . . . 35 Average 31 | . . 15 . 27 135 Maximum Alert Level 1 | . . . . . 1 Low Security (%) 95 | 100 100 100 . 100 62 Level 1 4 | . . . . . 37 Level 2 . | . . . . . . Level 3 . | . . . . . . Level 4 . | . . . . . . Level 5 . | . . . . . . High Security . | . . . . . . Max Security . | . . . . . . Squads Dispatched . | . . . . . . Investigation . | . . . . . . Extermination . | . . . . . . Reinforcement . | . . . . . . Assault . | . . . . . . Garrison . | . . . . . . Intercept . | . . . . . . Searches Triggered . | . . . . . . Construction Impeded . | . . . . . . Haulers Reinforced . | . . . . . . Active Scanning Responses . | . . . . . . Cargo Convoy Interrupts . | . . . . . . Stealth | -11 -10 -10 -10 -9 -8 --------- Run | Yrd Mat Min Exi Min Mat Distress Signals . | . . . . . . Communications Jammed . | . . . . . . Distress Signals . | . . . . . . Times Spotted 15 | . . 4 . 5 6 Peak Tracking Total 5 | . . 2 . 3 5 Tactical Retreats 1 | . . . . 1 . Traps | -11 -10 -10 -10 -9 -8 ------- Run | Yrd Mat Min Exi Min Mat Traps Triggered . | . . . . . . Indirectly . | . . . . . . Trap Hack Attempts . | . . . . . . Triggered . | . . . . . . Disarmed . | . . . . . . Reprogrammed . | . . . . . . Reused . | . . . . . . Traps Extracted . | . . . . . . Installed . | . . . . . . Triggered . | . . . . . . Machines | -11 -10 -10 -10 -9 -8 ---------- Run | Yrd Mat Min Exi Min Mat Machines Disabled 2 | . . . . . 2 Max in Single Turn 2 | . . . . . 2 Machines Repaired . | . . . . . . Machines Dismantled . | . . . . . . Machines Sabotaged . | . . . . . . Overloaded Fab Kills . | . . . . . . Hacking | -11 -10 -10 -10 -9 -8 --------- Run | Yrd Mat Min Exi Min Mat Machines Accessed 1 | . 1 . . . . Terminals 1 | . 1 . . . . Fabricators . | . . . . . . Repair Stations . | . . . . . . Recycling Units . | . . . . . . Scanalyzers . | . . . . . . Garrison Access . | . . . . . . Total Hacks 2 | . 2 . . . . Successful 1 | . 1 . . . . Failed 1 | . 1 . . . . Catastrophic . | . . . . . . Database Lockouts . | . . . . . . Manual 1 | . 1 . . . . Terminals 2 | . 2 . . . . Fabricators . | . . . . . . Repair Stations . | . . . . . . Recycling Units . | . . . . . . Scanalyzers . | . . . . . . Garrison Access . | . . . . . . Terminal Hacks 1 | . 1 . . . . Prototype ID Bank 1 | . 1 . . . . Fabricator Hacks . | . . . . . . Repair Station Hacks . | . . . . . . Recycling Unit Hacks . | . . . . . . Scanalyzer . | . . . . . . Garrison Access Hacks . | . . . . . . Unauthorized Hacks . | . . . . . . Terminals . | . . . . . . Fabricators . | . . . . . . Repair Stations . | . . . . . . Recycling Units . | . . . . . . Scanalyzers . | . . . . . . Garrison Access . | . . . . . . Data Cores Recovered . | . . . . . . Used . | . . . . . . Hacking Detections 1 | . 1 . . . . Full Trace Events . | . . . . . . Feedback Events . | . . . . . . Feedback Blocked . | . . . . . . Robot Schematics Acquired . | . . . . . . Robots Built . | . . . . . . Authchips . | . . . . . . Time . | . . . . . . Total Robot Build Rating . | . . . . . . Part Schematics Acquired . | . . . . . . Parts Built . | . . . . . . Authchips . | . . . . . . Time . | . . . . . . Total Part Build Rating . | . . . . . . Parts Repaired . | . . . . . . Time . | . . . . . . Parts Recycled . | . . . . . . Recycled Matter . | . . . . . . Retrieved Matter . | . . . . . . Retrieved Components . | . . . . . . Parts Scanalyzed . | . . . . . . Part Schematics Acquired . | . . . . . . Parts Damaged . | . . . . . . Bothacking | -11 -10 -10 -10 -9 -8 ------------ Run | Yrd Mat Min Exi Min Mat Used RIF Installer . | . . . . . . Robots Hacked . | . . . . . . Non-combat . | . . . . . . Combat . | . . . . . . Robot Hacks Applied . | . . . . . . Relay Couplers Released . | . . . . . . Fabnet Peak Effective % . | . . . . . . Robots Rewired . | . . . . . . Allies Hacked . | . . . . . . Hacks Repelled . | . . . . . . Allies | -11 -10 -10 -10 -9 -8 -------- Run | Yrd Mat Min Exi Min Mat Total Allies 1 | . . . . 1 . Largest Group 1 | . . . . 1 1 Highest-Rated Group 31 | . . . . 31 31 Highest-Rated Ally 31 | . . . . 31 31 Total Orders . | . . . . . . Ally Attacks 13 | . . . . . 13 Total Damage 189 | . . . . . 189 Kills 3 | . . . . . 3 Allies Corrupted . | . . . . . . Allies Melted . | . . . . . . Intel | -11 -10 -10 -10 -9 -8 ------- Run | Yrd Mat Min Exi Min Mat Robot Analysis Total . | . . . . . . Derelict Logs Recovered 3 | . . 2 . 1 . Drone Launches . | . . . . . . Drone Recoveries . | . . . . . . Exploration | -11 -10 -10 -10 -9 -8 ------------- Run | Yrd Mat Min Exi Min Mat Turns Passed 1390 | 5 111 542 298 304 130 Spaces Moved 1023 | 3 92 398 249 218 63 Core . | . . . . . . Treads . | . . . . . . Legs 1023 | 3 92 398 249 218 63 Wheels . | . . . . . . Hover . | . . . . . . Flight . | . . . . . . Fastest Speed 120 | 120 120 120 120 120 120 Average Speed 120 | 120 120 120 120 120 130 Slowest Speed 190 | 120 120 120 120 120 190 Overloaded Moves . | . . . . . . Propulsion Burnouts . | . . . . . . Robots Hopped . | . . . . . . Cave-ins Triggered . | . . . . . . Exploration Rate (%) 41 | 1 26 82 67 63 10 Regions Visited 5 Branch Regions 3 Pre-discovered Areas 1 | . . . . 1 . Known Exits Taken . | . . . . . . Unknown Exits Taken 5 | 1 1 1 1 1 . Scrap Searched 3 | . . 1 . 2 . Spaces Dug . | . . . . . . Terrain Destroyed 64 | . . 1 . . 63 Melee . | . . . . . . Projectile 1 | . . . . . 1 AOE 63 | . . 1 . . 62 Terrain Rammed . | . . . . . . Walls Destroyed . | . . . . . . Machines Disabled . | . . . . . . Actions | -11 -10 -10 -10 -9 -8 --------- Run | Yrd Mat Min Exi Min Mat Total 1110 | 5 92 436 248 244 85 Wait 17 | . . 13 . 4 . Move 1018 | 2 91 397 248 217 63 Hop . | . . . . . . Pick Up 6 | . . 2 . 3 1 Fast Attach 6 | . 1 1 . 1 3 Attach 6 | . . 1 . 1 4 Detach . | . . . . . . Swap 8 | 1 . 2 . 4 1 Drop 14 | 2 . 3 . 5 4 Fire 35 | . . 17 . 9 9 Melee . | . . . . . . Ram . | . . . . . . Kick . | . . . . . . Crush . | . . . . . . Escape Stasis . | . . . . . . Rewire . | . . . . . . Trap . | . . . . . . Miscellaneous . | . . . . . . Route ------- -11/Scrapyard -10/Materials -10/Mines (discovered 3 exits: [*Mat x2] / [*Exi]) -10/Exiles -9/Mines (discovered 2 exits: [*Mat x2]) -8/Materials (discovered 1 exit: Fac) History --------- Turn | Location | Event 4 | -11/Scrapyard | Discovered new exit (range 3) 6 | -11/Scrapyard | Entered Materials 91 | -10/Materials | Discovered new exit (range 16) 117 | -10/Materials | Entered Mines 124 | -10/Mines | Met a Derelict bent on vengeance 218 | -10/Mines | Discovered new exit (range 12) 253 | -10/Mines | Learned Materials emergency access door positions 311 | -10/Mines | Build established: Mutant 460 | -10/Mines | Discovered new exit (range 4) 566 | -10/Mines | Learned location of 1 exit from Materials 652 | -10/Mines | Deemed a non-threat by the Exiles lab entrance 653 | -10/Mines | Discovered new exit (range 5) 659 | -10/Mines | Entered Exiles 659 | -10/Exiles | Found Exiles lab abandoned 943 | -10/Exiles | Discovered new exit (range 14) 957 | -10/Exiles | Entered Mines 1232 | -9/Mines | Discovered new exit (range 11) 1239 | -9/Mines | Discovered new exit (range 8) 1248 | -9/Mines | Received a Mining Laser from a helpful Derelict 1252 | -9/Mines | Learned location of Storage (-8) 1261 | -9/Mines | Entered Materials 1261 | -8/Materials | Accompanied by 1 ally 1261 | -8/Materials | Evolved 4 slots: Propulsion x1, Utility x3 1262 | -8/Materials | Identified exit to Factory 1391 | -8/Materials | Self-destructed Last Messages --------------- 01342_ Y-45 Defender destroyed. 01342_ Acquired 30 matter. 01342_ K-01 Serf collects debris. 01343_ U-05 Engineer lays Concrete. 01345_ K-01 Serf collects debris. 01347_ U-05 Engineer builds a Wall. 01349_ K-01 Serf collects debris. 01350_ U-05 Engineer lays Concrete. 01352_ K-01 Serf collects debris. 01373_ W-25 Informer suffers critical hit (Burn). 01373_ Destroyed Imp. Hover Unit. 01373_ A-02 Transporter destroyed. 01379_ Terrain Scanner destroyed. 01379_ Critical hit (Burn: +37). 01379_ Visual Processing Unit melted. 01379_ W-25 Informer destroyed. 01387_ Dropped Aluminum Leg. 01388_ Acquired Prototype Flight Unit. 01388_ Identified Imp. Flight Unit. 01389_ Acquired 10 matter. Map ----- +----------------------------------------------------+ | ??????????????????????????????# ??????#?# #???? | | ???????????????????????????#### ###?????# ##??? | | ???????????????????????????? ####### "###? | | ????????????????????????????? ## # #? | | ?????????????????????????????? ## ## | | ??????????????????????????????# #""""" " # | | ????????????????????#?????????# ! # ## | | ???????????????????????????? ?#!%[# # | | ??????????????????????????????# [!# # | | ??????????????????????????????# #% ## | | ??????????????????????"???????# +| #? | | ????????????????????????? ????# # #? | | ???????????????????????????? ?### # " #? | | ????????????????????????????????# "[ " #? | | ?????????????????????????????#??# # "##? | | ????????????????????????????????# #"""""""""#?? | | ?????????????????????????#####??# ###"""""###?? | | ?????????????????????????#] ?# #? ###??? | | ?????????????????????????# # #? """ #????? | | ?????????????????????????#!!! * # # """ #????? | | ???????????????????????? #!!! +!+ """ #????? | | ?????????????????????????#!! #!# #????? | | ?????????????????????????# ??#%#?? / #????? | | ?????????????????????????###??###*###??#+#????? | | ?????????????????######+####### == #? ???????? | | ?????????? !=@ g=% #?????????? | | ??????????h [[[*= +???"?????? | | ?????????? [! #?????????? | | ??????????? ########+####### #?????????? | | ??????????????????????????????#######?????????? | | ??????????????????????????????????????????????? | | ??????????????????????????????#???????????????? | | ???????????????????????????????#??????????????? | | ??????????????????????????????????????????????? | | ?????????????????????????????#????????????????? | | ?????????????????????????#????????????????????? | | ??????????????????????????????????????????????? | | ??????????????????????????????????????????????? | | ??????????????????????????????????????????????? | | ??????????????????????????????????????????????? | | ??????????????????????????????????????????????? | | ??????????????????????????????????????????????? | | ??????????????????????????????????????????????? | | ??????????????????????????????????????????????? | | ??????????????????????????????????????????????? | | ??????????????????????????????????????????????? | | ??????????????????????????????????????????????? | | ??????????????????????????????????????????????? | | ??????????????????????????????????????????????? | | ??????????????????????????????????????????????? | +----------------------------------------------------+ Best States ------------- Heat Dissipation 59 Energy Generation 12 Energy Capacity 265 Matter Stores 300 Matter Capacity 300 Sight Range 16 Terrain Scan Range 14 Terrain Scan Density 10 Armor Coverage 225 Evasion (%) 55 Item Schematics ----------------- None Robot Schematics ------------------ None Fabricated ------------ Nothing Alien Tech Used ----------------- None Achievements -------------- None Challenges ------------ None Game ------ Seed GhostLayeredMagmablaster Manual? 0 Play Time 00:13:01 Cumulative 56.1 hours Start 2024.11.01 @ 17:10:48 End 2024.11.01 @ 17:33:04 Sessions 1 Manual Loads 0 Difficulty Rogue Special Mode None Game No. 41 Rogue 41 Adventurer 0 Explorer 0 Win Type - Total 0 Types 0/0/0/0/0/0/0/0/0 Lore% 22 Gallery% 43 Achievement% 35 Wizard Run 0 Options --------- Layout 0 ASCII 0 Keyboard 0 Movement Arrows Keybinds 0 Fullscreen 2 Font 18/X11 Map View 76x50 Zoom Use 0% Tactical HUD 1 Map Filters NONE Filters NONE Steam 0 RUN: ff28137f-603c-408d-b510-ca7a5df05706